[Event "Titled Tuesday Blitz June 28 Late 2022"]
[White "Silvestre, Christian"]
[Black "Jessel, Stephen"]
[WhiteFideId "30956269"]
[BlackFideId "628859"]
[WhiteElo "2365"]
[BlackElo "2268"]
[Result "0-1"]
[Round "04"]
[TimeControl "180+1"]
[Date "2022.06.29"]
[WhiteClock "0:00:13"]
[BlackClock "0:00:08"]

1. Nf3 {[%clk 0:03:00]}  d5 {[%clk 0:02:52]} 2. d4 {[%clk 0:03:00]}  e6 {[%clk 0:02:52]} 3. g3 {[%clk 0:03:00]}  b5 {[%clk 0:02:49]} 4. Bg2 {[%clk 0:03:00]}  Bb7 {[%clk 0:02:50]} 5. O-O {[%clk 0:03:00]}  c5 {[%clk 0:02:50]} 6. a4 {[%clk 0:02:57]}  b4 {[%clk 0:02:50]} 7. c3 {[%clk 0:02:57]}  a5 {[%clk 0:02:50]} 8. dxc5 {[%clk 0:02:53]}  Bxc5 {[%clk 0:02:50]} 9. cxb4 {[%clk 0:02:53]}  Bxb4 {[%clk 0:02:50]} 10. Bd2 {[%clk 0:02:53]}  Na6 {[%clk 0:02:48]} 11. Bc3 {[%clk 0:02:51]}  Nf6 {[%clk 0:02:48]} 12. Bxb4 {[%clk 0:02:34]}  Nxb4 {[%clk 0:02:48]} 13. Nc3 {[%clk 0:02:34]}  O-O {[%clk 0:02:47]} 14. Rc1 {[%clk 0:02:26]}  Qb6 {[%clk 0:02:46]} 15. Qd4 {[%clk 0:02:24]}  Qxd4 {[%clk 0:02:11]} 16. Nxd4 {[%clk 0:02:25]}  Rfc8 {[%clk 0:02:11]} 17. Ncb5 {[%clk 0:02:19]}  Ba6 {[%clk 0:01:52]} 18. e3 {[%clk 0:02:08]}  Nd3 {[%clk 0:01:42]} 19. Rxc8+ {[%clk 0:01:56]}  Rxc8 {[%clk 0:01:42]} 20. Rb1 {[%clk 0:01:50]}  Ng4 {[%clk 0:01:33]} 21. Bf1 {[%clk 0:01:10]}  Ngxf2 {[%clk 0:01:07]} 22. Be2 {[%clk 0:01:00]}  g6 {[%clk 0:00:53]} 23. Rf1 {[%clk 0:00:55]}  e5 {[%clk 0:00:50]} 24. Nb3 {[%clk 0:00:51]}  Rc2 {[%clk 0:00:42]} 25. Rxf2 {[%clk 0:00:46]}  Nxf2 {[%clk 0:00:43]} 26. Kxf2 {[%clk 0:00:46]}  Rxb2 {[%clk 0:00:34]} 27. Nc5 {[%clk 0:00:39]}  Bc8 {[%clk 0:00:34]} 28. Ke1 {[%clk 0:00:30]}  Rc2 {[%clk 0:00:23]} 29. Nd3 {[%clk 0:00:19]}  f6 {[%clk 0:00:19]} 30. Kd1 {[%clk 0:00:15]}  Ra2 {[%clk 0:00:18]} 31. Nc1 {[%clk 0:00:15]}  Rxa4 {[%clk 0:00:18]} 32. Nc3 {[%clk 0:00:15]}  Ra3 {[%clk 0:00:05]} 33. Nxd5 {[%clk 0:00:15]}  Be6 {[%clk 0:00:05]} 34. Nc7 {[%clk 0:00:14]}  Bf7 {[%clk 0:00:04]} 35. Nb5 {[%clk 0:00:14]}  Rxe3 {[%clk 0:00:04]} 36. Nd6 {[%clk 0:00:14]}  Kg7 {[%clk 0:00:03]} 37. Kd2 {[%clk 0:00:14]}  Ra3 {[%clk 0:00:03]} 38. Nxf7 {[%clk 0:00:14]}  Kxf7 {[%clk 0:00:03]} 39. Bd3 {[%clk 0:00:13]}  f5 {[%clk 0:00:04]} 40. Bc4+ {[%clk 0:00:12]}  Kf6 {[%clk 0:00:04]} 41. Bd3 {[%clk 0:00:13]}  e4 {[%clk 0:00:04]} 42. Be2 {[%clk 0:00:13]}  g5 {[%clk 0:00:04]} 43. Kc2 {[%clk 0:00:11]}  f4 {[%clk 0:00:05]} 44. Kb2 {[%clk 0:00:12]}  Re3 {[%clk 0:00:05]} 45. gxf4 {[%clk 0:00:11]}  gxf4 {[%clk 0:00:05]} 46. Bg4 {[%clk 0:00:11]}  f3 {[%clk 0:00:05]} 47. Nb3 {[%clk 0:00:09]}  f2 {[%clk 0:00:05]} 48. Nd2 {[%clk 0:00:09]}  Re1 {[%clk 0:00:05]} 49. Bh3 {[%clk 0:00:09]}  e3 {[%clk 0:00:05]} 50. Ne4+ {[%clk 0:00:08]}  Ke5 {[%clk 0:00:05]} 51. Bg2 {[%clk 0:00:05]}  f1=Q {[%clk 0:00:05]} 52. Bxf1 {[%clk 0:00:06]}  Rxf1 {[%clk 0:00:05]} 53. Ng3 {[%clk 0:00:07]}  Rf2+ {[%clk 0:00:05]} 54. Kc3 {[%clk 0:00:07]}  Rxh2 {[%clk 0:00:06]} 55. Kd3 {[%clk 0:00:07]}  Rh3 {[%clk 0:00:05]} 56. Ne2 {[%clk 0:00:08]}  h5 {[%clk 0:00:04]} 57. Nc3 {[%clk 0:00:09]}  h4 {[%clk 0:00:04]} 58. Ne2 {[%clk 0:00:10]}  Rg3 {[%clk 0:00:04]} 59. Nd4 {[%clk 0:00:11]}  e2+ {[%clk 0:00:04]} 60. Kxe2 {[%clk 0:00:09]}  Kxd4 {[%clk 0:00:04]} 61. Kf2 {[%clk 0:00:10]}  a4 {[%clk 0:00:04]} 62. Ke2 {[%clk 0:00:11]}  a3 {[%clk 0:00:05]} 63. Kd2 {[%clk 0:00:12]}  a2 {[%clk 0:00:06]} 64. Kc2 {[%clk 0:00:12]}  a1=Q {[%clk 0:00:06]} 65. Kd2 {[%clk 0:00:12]}  Qa2+ {[%clk 0:00:07]} 66. Ke1 {[%clk 0:00:13]}  Rg1# {[%clk 0:00:08]} 0-1


[Site "https://www.chess.com"]

[Event "Titled Tuesday Blitz June 28 Late 2022"]
[White "Sliwicki, Damian"]
[Black "Kaganskiy, Gleb"]
[WhiteFideId "1127128"]
[BlackFideId "4132025"]
[WhiteElo "2081"]
[BlackElo "2165"]
[Result "0-1"]
[Round "04"]
[TimeControl "180+1"]
[Date "2022.06.29"]
[WhiteClock "0:00:05"]
[BlackClock "0:01:02"]

1. e4 {[%clk 0:02:35]}  g6 {[%clk 0:03:00]} 2. d4 {[%clk 0:02:35]}  Nf6 {[%clk 0:03:00]} 3. e5 {[%clk 0:02:33]}  Nh5 {[%clk 0:03:00]} 4. Bc4 {[%clk 0:02:31]}  d5 {[%clk 0:02:54]} 5. exd6 {[%clk 0:02:30]}  cxd6 {[%clk 0:02:54]} 6. Nc3 {[%clk 0:02:27]}  Bg7 {[%clk 0:02:54]} 7. Nf3 {[%clk 0:02:11]}  O-O {[%clk 0:02:54]} 8. h3 {[%clk 0:02:05]}  Nc6 {[%clk 0:02:49]} 9. Be3 {[%clk 0:01:55]}  Nf6 {[%clk 0:02:43]} 10. a3 {[%clk 0:01:37]}  Bf5 {[%clk 0:02:43]} 11. Qd2 {[%clk 0:01:32]}  Rc8 {[%clk 0:02:42]} 12. Bb3 {[%clk 0:01:26]}  Ne4 {[%clk 0:02:42]} 13. Nxe4 {[%clk 0:01:26]}  Bxe4 {[%clk 0:02:43]} 14. c3 {[%clk 0:01:24]}  Bxf3 {[%clk 0:02:41]} 15. gxf3 {[%clk 0:01:25]}  d5 {[%clk 0:02:40]} 16. h4 {[%clk 0:01:25]}  h5 {[%clk 0:02:39]} 17. Bc2 {[%clk 0:01:22]}  e6 {[%clk 0:02:39]} 18. Rg1 {[%clk 0:01:22]}  Ne7 {[%clk 0:02:37]} 19. Bh6 {[%clk 0:01:22]}  Nf5 {[%clk 0:02:36]} 20. Bxg7 {[%clk 0:01:18]}  Kxg7 {[%clk 0:02:35]} 21. O-O-O {[%clk 0:01:18]}  Qxh4 {[%clk 0:02:29]} 22. Rh1 {[%clk 0:01:15]}  Qf6 {[%clk 0:02:20]} 23. Rdg1 {[%clk 0:01:14]}  Rh8 {[%clk 0:02:15]} 24. Rg5 {[%clk 0:01:08]}  Kf8 {[%clk 0:02:03]} 25. f4 {[%clk 0:01:07]}  h4 {[%clk 0:02:00]} 26. Kb1 {[%clk 0:01:00]}  b5 {[%clk 0:01:56]} 27. Qd3 {[%clk 0:00:59]}  a6 {[%clk 0:01:55]} 28. Bd1 {[%clk 0:00:55]}  h3 {[%clk 0:01:52]} 29. Rxh3 {[%clk 0:00:55]}  Rxh3 {[%clk 0:01:50]} 30. Qxh3 {[%clk 0:00:55]}  Ke7 {[%clk 0:01:49]} 31. Qf3 {[%clk 0:00:48]}  a5 {[%clk 0:01:47]} 32. Bc2 {[%clk 0:00:49]}  b4 {[%clk 0:01:47]} 33. Bxf5 {[%clk 0:00:49]}  gxf5 {[%clk 0:01:47]} 34. axb4 {[%clk 0:00:44]}  axb4 {[%clk 0:01:47]} 35. Qh3 {[%clk 0:00:37]}  bxc3 {[%clk 0:01:46]} 36. bxc3 {[%clk 0:00:38]}  Qh8 {[%clk 0:01:25]} 37. Qd3 {[%clk 0:00:25]}  Qh1+ {[%clk 0:01:19]} 38. Kc2 {[%clk 0:00:22]}  Rb8 {[%clk 0:01:12]} 39. Kd2 {[%clk 0:00:05]}  Rb2+ {[%clk 0:01:10]} 40. Ke3 {[%clk 0:00:05]}  Qe1+ {[%clk 0:01:02]} 0-1


[Site "https://www.chess.com"]

[Event "Titled Tuesday Blitz June 28 Late 2022"]
[White "Terry, Renato"]
[Black "Schekachikhin, Maksim"]
[WhiteFideId "3803457"]
[BlackFideId "24177830"]
[WhiteElo "2577"]
[BlackElo "2239"]
[Result "1-0"]
[Round "04"]
[TimeControl "180+1"]
[Date "2022.06.28"]
[WhiteClock "0:00:59"]
[BlackClock "0:00:19"]

1. d4 {[%clk 0:03:00]}  d5 {[%clk 0:02:58]} 2. Nf3 {[%clk 0:03:01]}  Nf6 {[%clk 0:02:58]} 3. c4 {[%clk 0:03:02]}  c6 {[%clk 0:02:57]} 4. Nc3 {[%clk 0:03:02]}  dxc4 {[%clk 0:02:57]} 5. a4 {[%clk 0:03:02]}  e6 {[%clk 0:02:57]} 6. e3 {[%clk 0:03:01]}  c5 {[%clk 0:02:57]} 7. Bxc4 {[%clk 0:03:00]}  Nc6 {[%clk 0:02:56]} 8. O-O {[%clk 0:03:00]}  Be7 {[%clk 0:02:56]} 9. Qe2 {[%clk 0:03:00]}  O-O {[%clk 0:02:36]} 10. Rd1 {[%clk 0:02:59]}  Qc7 {[%clk 0:02:33]} 11. h3 {[%clk 0:02:44]}  Rd8 {[%clk 0:02:27]} 12. dxc5 {[%clk 0:02:25]}  Rxd1+ {[%clk 0:02:21]} 13. Qxd1 {[%clk 0:02:26]}  Bxc5 {[%clk 0:02:21]} 14. b3 {[%clk 0:02:22]}  Qe7 {[%clk 0:02:17]} 15. Bb2 {[%clk 0:02:22]}  Bd7 {[%clk 0:02:16]} 16. Ng5 {[%clk 0:02:21]}  Rd8 {[%clk 0:02:11]} 17. Nce4 {[%clk 0:02:21]}  Nxe4 {[%clk 0:02:10]} 18. Nxe4 {[%clk 0:02:22]}  Bb4 {[%clk 0:02:04]} 19. Qh5 {[%clk 0:01:58]}  f6 {[%clk 0:01:44]} 20. Rd1 {[%clk 0:01:53]}  Be8 {[%clk 0:01:37]} 21. Rxd8 {[%clk 0:01:51]}  Nxd8 {[%clk 0:01:38]} 22. Qg4 {[%clk 0:01:43]}  Kh8 {[%clk 0:01:33]} 23. Ng3 {[%clk 0:01:30]}  Bg6 {[%clk 0:01:10]} 24. h4 {[%clk 0:01:27]}  Bf7 {[%clk 0:01:02]} 25. Nh5 {[%clk 0:01:22]}  Bxh5 {[%clk 0:00:49]} 26. Qxh5 {[%clk 0:01:23]}  Kg8 {[%clk 0:00:47]} 27. Qg4 {[%clk 0:01:19]}  Kf7 {[%clk 0:00:42]} 28. Qe4 {[%clk 0:01:16]}  g6 {[%clk 0:00:39]} 29. h5 {[%clk 0:01:16]}  Qd6 {[%clk 0:00:33]} 30. Qf3 {[%clk 0:01:16]}  f5 {[%clk 0:00:29]} 31. hxg6+ {[%clk 0:01:14]}  hxg6 {[%clk 0:00:29]} 32. g4 {[%clk 0:01:13]}  Ke7 {[%clk 0:00:21]} 33. gxf5 {[%clk 0:01:06]}  gxf5 {[%clk 0:00:21]} 34. Qh5 {[%clk 0:01:06]}  Kd7 {[%clk 0:00:21]} 35. Bf6 {[%clk 0:01:01]}  Nc6 {[%clk 0:00:20]} 36. Qf7+ {[%clk 0:01:01]}  Ne7 {[%clk 0:00:19]} 37. Bxe7 {[%clk 0:00:57]}  Qxe7 {[%clk 0:00:20]} 38. Bxe6+ {[%clk 0:00:58]}  Kd6 {[%clk 0:00:20]} 39. Qxe7+ {[%clk 0:00:57]}  Kxe7 {[%clk 0:00:21]} 40. Bxf5 {[%clk 0:00:58]}  Kf6 {[%clk 0:00:21]} 41. Bd3 {[%clk 0:00:58]}  b6 {[%clk 0:00:21]} 42. Kg2 {[%clk 0:00:58]}  Be1 {[%clk 0:00:21]} 43. f4 {[%clk 0:00:59]}  Bd2 {[%clk 0:00:21]} 44. Kf3 {[%clk 0:00:59]}  Bc1 {[%clk 0:00:21]} 45. e4 {[%clk 0:00:59]}  Bd2 {[%clk 0:00:20]} 46. e5+ {[%clk 0:00:57]}  Ke6 {[%clk 0:00:21]} 47. Ke4 {[%clk 0:00:58]}  Bc1 {[%clk 0:00:20]} 48. f5+ {[%clk 0:00:59]}  Ke7 {[%clk 0:00:21]} 49. f6+ {[%clk 0:01:00]}  Ke8 {[%clk 0:00:21]} 50. e6 {[%clk 0:00:59]}  Bb2 {[%clk 0:00:19]} 51. Bb5+ {[%clk 0:00:59]} 1-0


[Site "https://www.chess.com"]

[Event "Titled Tuesday Blitz June 28 Late 2022"]
[White "Tinmaz, Kerem"]
[Black "Berant"]
[WhiteFideId "44559151"]
[WhiteElo "1443"]
[BlackElo "2415"]
[Result "0-1"]
[Round "04"]
[TimeControl "180+1"]
[Date "2022.06.29"]
[WhiteClock "0:00:03"]
[BlackClock "0:00:42"]

1. e4 {[%clk 0:03:00]}  c5 {[%clk 0:02:43]} 2. Nc3 {[%clk 0:03:00]}  Nc6 {[%clk 0:02:42]} 3. Bb5 {[%clk 0:03:00]}  g6 {[%clk 0:02:42]} 4. Bxc6 {[%clk 0:03:00]}  dxc6 {[%clk 0:02:43]} 5. d3 {[%clk 0:03:00]}  Bg7 {[%clk 0:02:43]} 6. Be3 {[%clk 0:02:59]}  b6 {[%clk 0:02:44]} 7. Qd2 {[%clk 0:02:59]}  h6 {[%clk 0:02:43]} 8. f4 {[%clk 0:02:50]}  Nf6 {[%clk 0:02:42]} 9. h3 {[%clk 0:02:50]}  Qc7 {[%clk 0:02:41]} 10. Nf3 {[%clk 0:02:50]}  Ba6 {[%clk 0:02:39]} 11. O-O {[%clk 0:02:49]}  O-O-O {[%clk 0:02:35]} 12. a4 {[%clk 0:02:42]}  Nh5 {[%clk 0:02:27]} 13. a5 {[%clk 0:02:36]}  b5 {[%clk 0:02:18]} 14. g4 {[%clk 0:02:01]}  Ng3 {[%clk 0:02:08]} 15. Rfe1 {[%clk 0:02:00]}  b4 {[%clk 0:02:08]} 16. Nd1 {[%clk 0:01:26]}  Nxe4 {[%clk 0:02:04]} 17. Qg2 {[%clk 0:01:27]}  Nd6 {[%clk 0:01:55]} 18. Bxc5 {[%clk 0:01:26]}  Nb5 {[%clk 0:01:50]} 19. Rxe7 {[%clk 0:01:19]}  Rd7 {[%clk 0:01:50]} 20. Rxd7 {[%clk 0:01:10]}  Qxd7 {[%clk 0:01:51]} 21. Bxb4 {[%clk 0:00:50]}  Re8 {[%clk 0:01:47]} 22. Nc3 {[%clk 0:00:44]}  Nxc3 {[%clk 0:01:45]} 23. Bxc3 {[%clk 0:00:45]}  Bf8 {[%clk 0:01:41]} 24. Ne5 {[%clk 0:00:43]}  Bc5+ {[%clk 0:01:32]} 25. Kh2 {[%clk 0:00:43]}  Qc7 {[%clk 0:01:29]} 26. d4 {[%clk 0:00:27]}  Bd6 {[%clk 0:01:25]} 27. Rf1 {[%clk 0:00:08]}  f6 {[%clk 0:01:23]} 28. Nxg6 {[%clk 0:00:07]}  Re2 {[%clk 0:01:20]} 29. Rf2 {[%clk 0:00:06]}  Re3 {[%clk 0:01:02]} 30. Bd2 {[%clk 0:00:04]}  Re8 {[%clk 0:00:59]} 31. Nh4 {[%clk 0:00:04]}  Bb7 {[%clk 0:00:57]} 32. Nf5 {[%clk 0:00:05]}  c5 {[%clk 0:00:56]} 33. Qg3 {[%clk 0:00:03]}  Qc6 {[%clk 0:00:56]} 34. Rg2 {[%clk 0:00:01]}  Bc7 {[%clk 0:00:56]} 35. dxc5 {[%clk 0:00:01]}  Qxg2+ {[%clk 0:00:53]} 36. Qxg2 {[%clk 0:00:01]}  Bxg2 {[%clk 0:00:54]} 37. Kxg2 {[%clk 0:00:02]}  Re2+ {[%clk 0:00:54]} 38. Kf3 {[%clk 0:00:02]}  Rxd2 {[%clk 0:00:55]} 39. Nxh6 {[%clk 0:00:02]}  Rxc2 {[%clk 0:00:55]} 40. Ng8 {[%clk 0:00:02]}  Bd8 {[%clk 0:00:54]} 41. h4 {[%clk 0:00:02]}  Rxc5 {[%clk 0:00:54]} 42. h5 {[%clk 0:00:02]}  Rc1 {[%clk 0:00:54]} 43. h6 {[%clk 0:00:02]}  Rh1 {[%clk 0:00:54]} 44. Ke4 {[%clk 0:00:03]}  Bxa5 {[%clk 0:00:52]} 45. Kf5 {[%clk 0:00:03]}  Bd8 {[%clk 0:00:52]} 46. Kg6 {[%clk 0:00:03]}  f5 {[%clk 0:00:48]} 47. Kxf5 {[%clk 0:00:02]}  Bb6 {[%clk 0:00:45]} 48. g5 {[%clk 0:00:02]}  Bd4 {[%clk 0:00:45]} 49. g6 {[%clk 0:00:02]}  Bxb2 {[%clk 0:00:45]} 50. Ke6 {[%clk 0:00:01]}  a5 {[%clk 0:00:45]} 51. f5 {[%clk 0:00:02]}  Re1+ {[%clk 0:00:44]} 52. Kf7 {[%clk 0:00:02]}  a4 {[%clk 0:00:44]} 53. Ne7+ {[%clk 0:00:02]}  Kd7 {[%clk 0:00:44]} 54. f6 {[%clk 0:00:01]}  Rf1 {[%clk 0:00:43]} 55. g7 {[%clk 0:00:02]}  Rxf6+ {[%clk 0:00:42]} 56. Kg8 {[%clk 0:00:02]}  Kxe7 {[%clk 0:00:42]} 57. h7 {[%clk 0:00:02]}  Rh6 {[%clk 0:00:42]} 58. h8=Q {[%clk 0:00:03]}  Rxh8+ {[%clk 0:00:42]} 0-1


[Site "https://www.chess.com"]

[Event "Titled Tuesday Blitz June 28 Late 2022"]
[White "Urbina Perez, Juan Antonio"]
[Black "Tologon tegin, Semetei"]
[WhiteFideId "2217368"]
[BlackFideId "13800574"]
[WhiteElo "2192"]
[BlackElo "2174"]
[Result "1/2-1/2"]
[Round "04"]
[TimeControl "180+1"]
[Date "2022.06.29"]
[WhiteClock "0:00:27"]
[BlackClock "0:00:09"]

1. e4 {[%clk 0:03:00]}  c6 {[%clk 0:02:58]} 2. d4 {[%clk 0:02:59]}  d5 {[%clk 0:02:58]} 3. e5 {[%clk 0:03:00]}  Bf5 {[%clk 0:02:57]} 4. Nd2 {[%clk 0:03:00]}  e6 {[%clk 0:02:56]} 5. Nb3 {[%clk 0:03:00]}  Ne7 {[%clk 0:02:55]} 6. Nf3 {[%clk 0:03:01]}  Nd7 {[%clk 0:02:55]} 7. Be2 {[%clk 0:03:01]}  h6 {[%clk 0:02:55]} 8. O-O {[%clk 0:03:00]}  g5 {[%clk 0:02:39]} 9. a4 {[%clk 0:03:00]}  a6 {[%clk 0:02:29]} 10. a5 {[%clk 0:02:59]}  Bg7 {[%clk 0:02:26]} 11. c3 {[%clk 0:02:58]}  c5 {[%clk 0:02:22]} 12. Nxc5 {[%clk 0:02:52]}  Nxc5 {[%clk 0:02:22]} 13. dxc5 {[%clk 0:02:53]}  Nc6 {[%clk 0:02:21]} 14. Bd3 {[%clk 0:02:46]}  Bg4 {[%clk 0:02:17]} 15. h3 {[%clk 0:02:46]}  Bxf3 {[%clk 0:02:16]} 16. Qxf3 {[%clk 0:02:47]}  Nxe5 {[%clk 0:02:16]} 17. Qe2 {[%clk 0:02:47]}  Nxd3 {[%clk 0:02:14]} 18. Qxd3 {[%clk 0:02:48]}  Qc7 {[%clk 0:02:12]} 19. b4 {[%clk 0:02:46]}  Rd8 {[%clk 0:02:01]} 20. f4 {[%clk 0:02:43]}  Qe7 {[%clk 0:01:49]} 21. Be3 {[%clk 0:02:24]}  O-O {[%clk 0:01:38]} 22. fxg5 {[%clk 0:02:15]}  hxg5 {[%clk 0:01:37]} 23. Rae1 {[%clk 0:02:10]}  f5 {[%clk 0:01:24]} 24. c6 {[%clk 0:01:51]}  bxc6 {[%clk 0:01:22]} 25. Bc5 {[%clk 0:01:51]}  Qd7 {[%clk 0:01:18]} 26. Bxf8 {[%clk 0:01:51]}  Rxf8 {[%clk 0:01:18]} 27. Re3 {[%clk 0:01:48]}  e5 {[%clk 0:01:15]} 28. Qxa6 {[%clk 0:01:43]}  f4 {[%clk 0:01:14]} 29. Re2 {[%clk 0:01:41]}  e4 {[%clk 0:01:11]} 30. c4 {[%clk 0:01:38]}  g4 {[%clk 0:00:46]} 31. hxg4 {[%clk 0:01:11]}  Bd4+ {[%clk 0:00:44]} 32. Rff2 {[%clk 0:01:06]}  f3 {[%clk 0:00:41]} 33. gxf3 {[%clk 0:01:02]}  Rxf3 {[%clk 0:00:41]} 34. Kf1 {[%clk 0:00:48]}  Rxf2+ {[%clk 0:00:18]} 35. Rxf2 {[%clk 0:00:49]}  Bxf2 {[%clk 0:00:18]} 36. Kxf2 {[%clk 0:00:48]}  d4 {[%clk 0:00:13]} 37. c5 {[%clk 0:00:39]}  Qf7+ {[%clk 0:00:09]} 38. Ke1 {[%clk 0:00:36]}  e3 {[%clk 0:00:07]} 39. Qc8+ {[%clk 0:00:35]}  Kg7 {[%clk 0:00:06]} 40. Qf5 {[%clk 0:00:33]}  Qc4 {[%clk 0:00:06]} 41. Qe5+ {[%clk 0:00:29]}  Kf7 {[%clk 0:00:06]} 42. Qf5+ {[%clk 0:00:29]}  Kg7 {[%clk 0:00:06]} 43. Qe5+ {[%clk 0:00:29]}  Kf7 {[%clk 0:00:06]} 44. Qf5+ {[%clk 0:00:27]}  Ke7 {[%clk 0:00:07]} 45. Qe5+ {[%clk 0:00:27]}  Kf8 {[%clk 0:00:07]} 46. Qf6+ {[%clk 0:00:26]}  Kg8 {[%clk 0:00:07]} 47. Qg6+ {[%clk 0:00:26]}  Kf8 {[%clk 0:00:08]} 48. Qf6+ {[%clk 0:00:26]}  Kg8 {[%clk 0:00:08]} 49. Qg6+ {[%clk 0:00:27]}  Kh8 {[%clk 0:00:08]} 50. Qh6+ {[%clk 0:00:26]}  Kg8 {[%clk 0:00:09]} 51. Qg6+ {[%clk 0:00:27]} 1/2-1/2


[Site "https://www.chess.com"]

[Event "Titled Tuesday Blitz June 28 Late 2022"]
[White "Vidonyak, Roman"]
[Black "Bach, Matthias"]
[WhiteFideId "14100622"]
[BlackFideId "4603168"]
[WhiteElo "2328"]
[BlackElo "2165"]
[Result "1-0"]
[Round "04"]
[TimeControl "180+1"]
[Date "2022.06.29"]
[WhiteClock "0:00:48"]
[BlackClock "0:00:51"]

1. d4 {[%clk 0:03:00]}  Nf6 {[%clk 0:02:59]} 2. c4 {[%clk 0:03:00]}  c5 {[%clk 0:02:59]} 3. d5 {[%clk 0:03:00]}  e6 {[%clk 0:02:59]} 4. Nc3 {[%clk 0:03:00]}  exd5 {[%clk 0:02:59]} 5. cxd5 {[%clk 0:03:01]}  d6 {[%clk 0:02:59]} 6. e4 {[%clk 0:03:01]}  g6 {[%clk 0:02:58]} 7. f4 {[%clk 0:03:02]}  Bg7 {[%clk 0:02:59]} 8. Bb5+ {[%clk 0:03:03]}  Bd7 {[%clk 0:02:58]} 9. e5 {[%clk 0:02:52]}  Nh5 {[%clk 0:02:50]} 10. Nf3 {[%clk 0:02:52]}  O-O {[%clk 0:02:37]} 11. O-O {[%clk 0:02:48]}  a6 {[%clk 0:02:26]} 12. Bxd7 {[%clk 0:02:46]}  Nxd7 {[%clk 0:02:27]} 13. g4 {[%clk 0:02:45]}  dxe5 {[%clk 0:02:27]} 14. gxh5 {[%clk 0:02:44]}  Re8 {[%clk 0:02:15]} 15. fxe5 {[%clk 0:02:40]}  Nxe5 {[%clk 0:02:12]} 16. Bf4 {[%clk 0:02:35]}  Nc4 {[%clk 0:02:07]} 17. Qc2 {[%clk 0:02:19]}  Qd7 {[%clk 0:01:55]} 18. Qg2 {[%clk 0:02:06]}  Qf5 {[%clk 0:01:49]} 19. Ng5 {[%clk 0:01:58]}  h6 {[%clk 0:01:21]} 20. Bd2 {[%clk 0:01:14]}  Qd3 {[%clk 0:01:16]} 21. hxg6 {[%clk 0:00:57]}  fxg6 {[%clk 0:01:10]} 22. Nge4 {[%clk 0:00:52]}  Bxc3 {[%clk 0:01:00]} 23. Qxg6+ {[%clk 0:00:48]}  Bg7 {[%clk 0:00:51]} 24. Nf6+ {[%clk 0:00:48]} 1-0


[Site "https://www.chess.com"]

[Event "Titled Tuesday Blitz June 28 Late 2022"]
[White "Vlassov, Nikolai"]
[Black "Nikologorsky, Matfei"]
[WhiteFideId "4103360"]
[BlackFideId "24102474"]
[WhiteElo "2407"]
[BlackElo "2231"]
[Result "1-0"]
[Round "04"]
[TimeControl "180+1"]
[Date "2022.06.29"]
[WhiteClock "0:00:30"]
[BlackClock "0:00:03"]

1. e4 {[%clk 0:02:59]}  c5 {[%clk 0:02:59]} 2. c3 {[%clk 0:02:54]}  d5 {[%clk 0:02:59]} 3. exd5 {[%clk 0:02:53]}  Qxd5 {[%clk 0:03:00]} 4. d4 {[%clk 0:02:51]}  Nf6 {[%clk 0:02:58]} 5. Nf3 {[%clk 0:02:51]}  e6 {[%clk 0:02:58]} 6. a3 {[%clk 0:02:50]}  Nc6 {[%clk 0:02:47]} 7. Be3 {[%clk 0:02:48]}  cxd4 {[%clk 0:02:45]} 8. cxd4 {[%clk 0:02:43]}  Be7 {[%clk 0:02:46]} 9. Nc3 {[%clk 0:02:39]}  Qd7 {[%clk 0:02:35]} 10. Bb5 {[%clk 0:02:34]}  O-O {[%clk 0:02:30]} 11. Qa4 {[%clk 0:02:32]}  Qd6 {[%clk 0:02:23]} 12. Bxc6 {[%clk 0:02:21]}  bxc6 {[%clk 0:02:22]} 13. O-O {[%clk 0:02:16]}  Bb7 {[%clk 0:02:10]} 14. Rac1 {[%clk 0:02:13]}  Rfd8 {[%clk 0:01:44]} 15. b4 {[%clk 0:02:08]}  h6 {[%clk 0:01:42]} 16. Ne5 {[%clk 0:02:05]}  a5 {[%clk 0:01:29]} 17. Nc4 {[%clk 0:02:04]}  Qc7 {[%clk 0:01:23]} 18. Nxa5 {[%clk 0:02:02]}  Ng4 {[%clk 0:01:23]} 19. g3 {[%clk 0:01:59]}  Nxe3 {[%clk 0:01:09]} 20. fxe3 {[%clk 0:01:59]}  Bg5 {[%clk 0:01:10]} 21. Nd1 {[%clk 0:01:51]}  e5 {[%clk 0:00:56]} 22. dxe5 {[%clk 0:01:51]}  Qxe5 {[%clk 0:00:55]} 23. Qb3 {[%clk 0:01:50]}  Qe4 {[%clk 0:00:50]} 24. Nxb7 {[%clk 0:01:43]}  Rxd1 {[%clk 0:00:24]} 25. Qxf7+ {[%clk 0:01:36]}  Kh8 {[%clk 0:00:24]} 26. Rcxd1 {[%clk 0:01:36]}  Bxe3+ {[%clk 0:00:20]} 27. Rf2 {[%clk 0:01:37]}  Qc2 {[%clk 0:00:10]} 28. Re1 {[%clk 0:01:24]}  Qd2 {[%clk 0:00:09]} 29. Rxe3 {[%clk 0:01:17]}  Qxe3 {[%clk 0:00:09]} 30. Nd6 {[%clk 0:01:11]}  Rxa3 {[%clk 0:00:08]} 31. Kg2 {[%clk 0:01:02]}  Ra1 {[%clk 0:00:07]} 32. Qe8+ {[%clk 0:00:56]}  Qxe8 {[%clk 0:00:07]} 33. Nxe8 {[%clk 0:00:56]}  Rb1 {[%clk 0:00:07]} 34. Rf4 {[%clk 0:00:55]}  Kg8 {[%clk 0:00:08]} 35. Nc7 {[%clk 0:00:50]}  Kh7 {[%clk 0:00:06]} 36. Ne6 {[%clk 0:00:47]}  Kg6 {[%clk 0:00:06]} 37. h4 {[%clk 0:00:45]}  h5 {[%clk 0:00:06]} 38. Rc4 {[%clk 0:00:40]}  Kf7 {[%clk 0:00:05]} 39. Nd8+ {[%clk 0:00:40]}  Ke7 {[%clk 0:00:04]} 40. Nxc6+ {[%clk 0:00:40]}  Kd6 {[%clk 0:00:05]} 41. Na5 {[%clk 0:00:35]}  Kd5 {[%clk 0:00:05]} 42. Rf4 {[%clk 0:00:35]}  Ke5 {[%clk 0:00:05]} 43. Nc4+ {[%clk 0:00:32]}  Ke6 {[%clk 0:00:04]} 44. Ne3 {[%clk 0:00:32]}  Rb3 {[%clk 0:00:04]} 45. Nf5 {[%clk 0:00:30]}  g6 {[%clk 0:00:03]} 46. Nd4+ {[%clk 0:00:30]} 1-0


[Site "https://www.chess.com"]

[Event "Titled Tuesday Blitz June 28 Late 2022"]
[White "Xu, Yi"]
[Black "Kamsky, Gata"]
[WhiteFideId "8605564"]
[BlackFideId "2000024"]
[WhiteElo "2471"]
[BlackElo "2645"]
[Result "1-0"]
[Round "04"]
[TimeControl "180+1"]
[Date "2022.06.28"]
[WhiteClock "0:00:07"]
[BlackClock "0:00:03"]

1. e4 {[%clk 0:03:00]}  g6 {[%clk 0:02:55]} 2. d4 {[%clk 0:03:00]}  Bg7 {[%clk 0:02:55]} 3. Nc3 {[%clk 0:03:01]}  d6 {[%clk 0:02:54]} 4. f4 {[%clk 0:03:00]}  Nf6 {[%clk 0:02:53]} 5. Bd3 {[%clk 0:02:58]}  Bg4 {[%clk 0:02:33]} 6. Be2 {[%clk 0:02:48]}  Bxe2 {[%clk 0:02:28]} 7. Qxe2 {[%clk 0:02:38]}  c6 {[%clk 0:02:22]} 8. Nf3 {[%clk 0:02:36]}  O-O {[%clk 0:02:18]} 9. e5 {[%clk 0:02:24]}  Nd5 {[%clk 0:02:14]} 10. Nxd5 {[%clk 0:02:17]}  cxd5 {[%clk 0:02:13]} 11. h4 {[%clk 0:02:09]}  Nc6 {[%clk 0:01:58]} 12. h5 {[%clk 0:02:03]}  Qc8 {[%clk 0:01:33]} 13. Be3 {[%clk 0:01:38]}  dxe5 {[%clk 0:01:03]} 14. fxe5 {[%clk 0:01:34]}  f6 {[%clk 0:01:00]} 15. hxg6 {[%clk 0:01:30]}  hxg6 {[%clk 0:00:59]} 16. O-O-O {[%clk 0:01:17]}  fxe5 {[%clk 0:00:57]} 17. dxe5 {[%clk 0:01:06]}  Qe6 {[%clk 0:00:20]} 18. Bh6 {[%clk 0:00:55]}  Bxh6+ {[%clk 0:00:17]} 19. Rxh6 {[%clk 0:00:55]}  Qf5 {[%clk 0:00:10]} 20. Qd2 {[%clk 0:00:20]}  Rad8 {[%clk 0:00:09]} 21. Rdh1 {[%clk 0:00:17]}  Kf7 {[%clk 0:00:09]} 22. Nh4 {[%clk 0:00:17]}  Qe4 {[%clk 0:00:05]} 23. Nxg6 {[%clk 0:00:15]}  Rg8 {[%clk 0:00:05]} 24. Rh7+ {[%clk 0:00:11]}  Ke8 {[%clk 0:00:06]} 25. Nf4 {[%clk 0:00:11]}  Nxe5 {[%clk 0:00:04]} 26. Rh8 {[%clk 0:00:10]}  Kd7 {[%clk 0:00:03]} 27. Rxg8 {[%clk 0:00:08]}  Rxg8 {[%clk 0:00:03]} 28. Re1 {[%clk 0:00:07]} 1-0


[Site "https://www.chess.com"]